bitfinex/quotes_BTCUSD_20250211
["timestamp","ask_amount","ask_price","bid_price","bid_amount"]
[1739252334371,0.0001067,98392.0,98391.0,1.34748182]
[1739252335413,0.0001067,98392.0,98391.0,1.35448182]
[1739252337505,0.0001067,98392.0,98391.0,1.33948182]
[1739252337977,0.0001067,98392.0,98391.0,1.35448182]
[1739252338539,0.0001067,98392.0,98391.0,1.34048182]
[1739252338757,0.0001067,98392.0,98391.0,1.34748182]
[1739252343685,0.0001067,98392.0,98391.0,1.43628182]
[1739252344316,0.0001067,98392.0,98391.0,1.42128182]
[1739252344525,0.0001067,98392.0,98391.0,1.43628182]
[1739252344864,0.0001067,98392.0,98391.0,1.42928182]
[1739252345154,0.0001067,98392.0,98391.0,1.41128182]
[1739252346444,0.0001067,98392.0,98391.0,1.42628182]
[1739252347703,0.0001067,98392.0,98391.0,1.41128182]
[1739252347901,0.0001067,98392.0,98391.0,1.42628182]
[1739252348252,0.0001067,98392.0,98391.0,1.41928182]
[1739252348958,0.0001067,98392.0,98391.0,1.42628182]
[1739252351962,0.0001067,98392.0,98391.0,1.43035182]
[1739252352097,0.0001067,98392.0,98391.0,1.40835182]
[1739252352536,0.0001067,98392.0,98391.0,1.41535182]
[1739252352767,0.0001067,98392.0,98391.0,1.40835182]
[1739252353190,0.0001067,98392.0,98391.0,1.41535182]
[1739252353625,0.0001067,98392.0,98391.0,1.43035182]
[1739252354262,0.0001067,98392.0,98391.0,1.41535182]
[1739252354833,0.0001067,98392.0,98391.0,1.43035182]
[1739252355233,0.0001067,98392.0,98391.0,1.42628182]
[1739252355442,0.0001067,98392.0,98391.0,1.43380182]
[1739252356346,0.0001067,98392.0,98391.0,1.42680182]
[1739252356553,0.0001067,98392.0,98391.0,1.43380182]
[1739252356899,0.0001067,98392.0,98391.0,1.41880182]
[1739252357048,0.0001067,98392.0,98391.0,1.43380182]
[1739252357536,0.0001067,98392.0,98391.0,1.41880182]
[1739252357943,0.0001067,98392.0,98391.0,1.42680182]
[1739252358430,0.0001067,98392.0,98391.0,1.43380182]
[1739252358633,0.0001067,98392.0,98391.0,1.41880182]
[1739252359053,0.0001067,98392.0,98391.0,1.41180182]
[1739252359257,0.0001067,98392.0,98391.0,1.41880182]
[1739252359998,0.0001067,98392.0,98391.0,1.43380182]
[1739252362411,0.0001067,98392.0,98391.0,1.35500182]
[1739252374708,0.0001067,98392.0,98391.0,1.34000182]
[1739252375107,0.0001067,98392.0,98391.0,1.34800182]
[1739252375478,0.0001067,98392.0,98391.0,1.35500182]
[1739252376433,0.0001067,98392.0,98391.0,1.36500182]
[1739252376649,0.0001067,98392.0,98391.0,1.37500182]
[1739252378420,0.0001067,98392.0,98391.0,1.36000182]
[1739252378641,0.0001067,98392.0,98391.0,1.35300182]
[1739252378846,0.0001067,98392.0,98391.0,1.36800182]
[1739252379045,0.0001067,98392.0,98391.0,1.37500182]
[1739252383324,0.0001066,98403.0,98402.0,0.302435]
[1739252383523,0.0001066,98403.0,98402.0,1.26063865]
[1739252384518,0.0001066,98403.0,98402.0,1.28263865]
[1739252385099,0.0001066,98403.0,98402.0,0.44610365]
[1739252385332,0.0001066,98403.0,98402.0,0.27693865]
[1739252385333,0.1278066,98403.0,98402.0,0.27693865]
[1739252385555,0.1278066,98403.0,98402.0,0.42693865]
[1739252386337,0.1278066,98403.0,98402.0,0.41193865]
[1739252386870,0.0452066,98403.0,98402.0,0.44993865]
[1739252387421,0.0452066,98403.0,98402.0,0.44293865]
[1739252387659,0.0452066,98403.0,98402.0,0.44993865]
[1739252387989,0.0001066,98403.0,98402.0,0.44993865]
[1739252390769,0.0001066,98403.0,98402.0,1.30563865]
[1739252399007,0.0001066,98403.0,98402.0,1.28263865]
[1739252402743,0.0001066,98403.0,98402.0,0.74853865]
[1739252405595,0.0001066,98403.0,98402.0,0.77153865]
[1739252426425,0.0001066,98403.0,98402.0,1.30563865]
[1739252447825,0.0001066,98403.0,98402.0,1.30563865]
[1739252477138,0.0001066,98403.0,98402.0,1.13020365]
[1739252477546,0.01917481,98403.0,98402.0,1.13020365]
[1739252477754,0.01917481,98403.0,98402.0,1.28263865]
[1739252478543,0.01917481,98403.0,98402.0,1.27563865]
[1739252478754,0.01917481,98403.0,98402.0,1.28163865]
[1739252479130,0.01917481,98403.0,98402.0,1.27563865]
[1739252479310,0.01917481,98403.0,98402.0,1.26663865]
[1739252479729,0.01917481,98403.0,98402.0,1.27263865]
[1739252479946,0.01917481,98403.0,98402.0,0.76753865]
[1739252480151,0.01917481,98403.0,98402.0,0.75553865]
[1739252480354,0.0001066,98403.0,98402.0,0.75553865]
[1739252480556,0.0001066,98403.0,98402.0,0.76753865]
[1739252481027,0.0001066,98403.0,98402.0,0.75553865]
[1739252481224,0.0001066,98403.0,98402.0,0.76953865]
[1739252481424,0.0001066,98403.0,98402.0,0.76353865]
[1739252481871,0.0001066,98403.0,98402.0,0.76953865]
[1739252483033,0.0001066,98403.0,98402.0,0.75553865]
[1739252483243,0.0001066,98403.0,98402.0,0.60310365]
[1739252483447,0.0001066,98403.0,98402.0,0.61610365]
[1739252483662,0.0001066,98403.0,98402.0,0.59310365]
[1739252483866,0.0001066,98403.0,98402.0,0.58010365]
[1739252484065,0.0001066,98403.0,98402.0,0.73253865]
[1739252484272,0.0001066,98403.0,98402.0,0.74653865]
[1739252487500,0.01916715,98403.0,98402.0,0.74653865]
[1739252492081,0.14246715,98403.0,98402.0,0.3416]
[1739252492958,0.1234066,98403.0,98402.0,0.3416]
[1739252493772,0.1234066,98403.0,98402.0,0.3276]
[1739252494308,0.1234066,98403.0,98402.0,0.3216]
[1739252494610,0.1234066,98403.0,98402.0,0.3266]
[1739252495238,0.1234066,98403.0,98402.0,0.3366]
[1739252501756,0.0464066,98403.0,98402.0,0.3366]
[1739252503109,0.1988406,98403.0,98402.0,0.3366]
[1739252504296,0.0464066,98403.0,98402.0,0.3316]
[1739252504475,0.0464066,98403.0,98402.0,0.3336]
[1739252504884,0.1988406,98403.0,98402.0,0.3336]
[1739252505150,0.1988406,98403.0,98402.0,0.3236]
[1739252505347,0.1988406,98403.0,98402.0,0.3266]
[1739252506173,0.26707236,98403.0,98402.0,0.005]
[1739252506392,0.34487236,98403.0,98402.0,0.005]
[1739252506598,0.2766406,98403.0,98402.0,0.005]
[1739252509594,0.0001066,98403.0,98402.0,0.005]
[1739252524040,0.0001066,98403.0,98402.0,0.38353865]
[1739252524453,0.0001066,98403.0,98402.0,0.53353865]
[1739252524668,0.0001066,98403.0,98402.0,0.55653865]
[1739252526680,0.0001066,98403.0,98402.0,0.51123865]
[1739252527493,0.0001066,98403.0,98402.0,0.83283865]
[1739252545762,0.0001066,98403.0,98402.0,0.82983865]
[1739252545962,0.0001066,98403.0,98402.0,0.82783865]
[1739252546180,0.0001066,98403.0,98402.0,0.83383865]
[1739252546372,0.0001066,98403.0,98402.0,0.84683865]
[1739252546951,0.0001066,98403.0,98402.0,0.83383865]
[1739252547244,0.0001066,98403.0,98402.0,0.84783865]
[1739252548171,0.0001066,98403.0,98402.0,0.84183865]
[1739252548553,0.0001066,98403.0,98402.0,0.83383865]
[1739252548749,0.0001066,98403.0,98402.0,0.82783865]
[1739252548988,0.0001066,98403.0,98402.0,0.83983865]
[1739252549194,0.0001066,98403.0,98402.0,0.84583865]
[1739252549392,0.0001066,98403.0,98402.0,0.83383865]
[1739252549591,0.0001066,98403.0,98402.0,0.84783865]
[1739252550048,0.0001066,98403.0,98402.0,0.84183865]
[1739252550259,0.0001066,98403.0,98402.0,0.83483865]
[1739252550429,0.0001066,98403.0,98402.0,0.84983865]
[1739252551182,0.0001066,98403.0,98402.0,1.38393865]
[1739252559023,0.0001066,98403.0,98402.0,1.30563865]
[1739252563157,0.0001066,98403.0,98402.0,0.62153865]
[1739252564819,0.0001066,98403.0,98402.0,0.59953865]
[1739252565024,0.0001066,98403.0,98402.0,0.60653865]
[1739252565181,0.0001066,98403.0,98402.0,0.62153865]
[1739252569079,0.0001066,98403.0,98402.0,1.15563865]
[1739252576495,0.0001066,98403.0,98402.0,0.83403865]
[1739252580911,0.0001066,98403.0,98402.0,0.29993865]
[1739252583121,0.0001066,98403.0,98402.0,0.12450365]
[1739252584968,0.0001066,98403.0,98402.0,0.14750365]
[1739252585409,0.0001066,98403.0,98402.0,0.29993865]
[1739252586943,0.0001066,98403.0,98402.0,0.62153865]
[1739252587776,0.0001066,98403.0,98402.0,0.46910365]
[1739252587998,0.0001066,98403.0,98402.0,0.62153865]
[1739252590337,0.0001066,98403.0,98402.0,0.46910365]
[1739252591156,0.0001066,98403.0,98402.0,0.62153865]
[1739252594446,0.0001066,98403.0,98402.0,0.46910365]
[1739252595088,0.0001066,98403.0,98402.0,0.62153865]
[1739252600428,0.0001066,98403.0,98402.0,0.63164973]
[1739252602662,0.0001066,98403.0,98402.0,0.65062025]
[1739252604641,0.0001066,98403.0,98402.0,1.18472025]
[1739252605998,0.0001066,98403.0,98402.0,1.16574973]
[1739252625770,0.0001066,98403.0,98402.0,1.13263865]
[1739252625997,0.0001066,98403.0,98402.0,0.98020365]
[1739252626216,0.0001066,98403.0,98402.0,1.13263865]
[1739252626420,0.0001066,98403.0,98402.0,1.15563865]
[1739252664944,0.0001066,98403.0,98402.0,1.13263865]
[1739252669119,0.0001066,98403.0,98402.0,1.15563865]
[1739252669699,0.0001066,98403.0,98402.0,1.15553865]
[1739252670173,0.0001066,98403.0,98402.0,0.62143865]
[1739252674491,0.0001066,98403.0,98402.0,0.62166251]
[1739252675243,0.0001066,98403.0,98402.0,0.89476251]
[1739252676046,0.0001066,98403.0,98402.0,1.42886251]
[1739252680042,0.0001066,98403.0,98402.0,1.40576251]
[1739252680255,0.0001066,98403.0,98402.0,1.42876251]
[1739252680471,0.0001066,98403.0,98402.0,1.40576251]
[1739252680703,0.0001066,98403.0,98402.0,1.28266251]
[1739252681115,0.0001066,98403.0,98402.0,1.26766251]
[1739252681298,0.0001066,98403.0,98402.0,1.26066251]
[1739252681440,0.0001066,98403.0,98402.0,1.27566251]
[1739252681653,0.0001066,98403.0,98402.0,1.28166251]
[1739252682034,0.0001066,98403.0,98402.0,1.26066251]
[1739252682219,0.0001066,98403.0,98402.0,1.26666251]
[1739252682449,0.0001066,98403.0,98402.0,1.26066251]
[1739252682820,0.0001066,98403.0,98402.0,1.26666251]
[1739252683697,0.0001066,98403.0,98402.0,1.27966251]
[1739252684046,0.0001066,98403.0,98402.0,1.26666251]
[1739252684464,0.0001066,98403.0,98402.0,1.27366251]
[1739252684896,0.0001066,98403.0,98402.0,1.27966251]
[1739252685067,0.0001066,98403.0,98402.0,1.26066251]
[1739252685492,0.0001066,98403.0,98402.0,1.27966251]
[1739252708151,0.0001066,98403.0,98402.0,1.35666251]
[1739252708935,0.0001066,98403.0,98402.0,1.37565086]
[1739252709136,0.0001066,98403.0,98402.0,1.36265086]
[1739252709343,0.0001066,98403.0,98402.0,1.37965086]
[1739252709542,0.0001066,98403.0,98402.0,1.32365086]
[1739252710400,0.0001066,98403.0,98402.0,1.30965086]
[1739252710758,0.0001066,98403.0,98402.0,1.32165086]
[1739252711562,0.0001066,98403.0,98402.0,1.31465086]
[1739252711970,0.0001066,98403.0,98402.0,1.32065086]
[1739252714367,0.0001066,98403.0,98402.0,1.29765086]
[1739252714597,0.0001066,98403.0,98402.0,0.76355086]
[1739252715372,0.0001066,98403.0,98402.0,0.61355086]
[1739252715541,0.0001066,98403.0,98402.0,0.59456251]
[1739252717542,0.0756066,98403.0,98402.0,0.33982386]
[1739252717827,0.08781726,98403.0,98402.0,0.33982386]
[1739252718051,0.0756066,98403.0,98402.0,0.33982386]
[1739252718719,0.0756066,98403.0,98402.0,0.33382386]
[1739252719057,0.0756066,98403.0,98402.0,0.00022386]
[1739252719257,0.0756066,98403.0,98402.0,0.00522386]
[1739252719453,0.08881628,98403.0,98402.0,0.01522386]
[1739252719986,0.08881628,98403.0,98402.0,0.00022386]
[1739252720158,0.08881628,98403.0,98402.0,0.00922386]
[1739252720351,0.0756066,98403.0,98402.0,0.00922386]
[1739252720993,0.0756066,98403.0,98402.0,0.01322386]
[1739252724280,0.0756066,98403.0,98402.0,0.00922386]
[1739252725256,0.0756066,98403.0,98402.0,0.00022386]
[1739252726643,0.0776066,98403.0,98402.0,0.00022386]
[1739252726836,0.09001726,98403.0,98402.0,0.00022386]
[1739252727315,0.0776066,98403.0,98402.0,0.00022386]
[1739252732226,0.0756066,98403.0,98402.0,0.00022386]
[1739252732630,0.0796066,98403.0,98402.0,0.00122386]
[1739252733030,0.0756066,98403.0,98402.0,0.00022386]
[1739252733452,0.0796066,98403.0,98402.0,0.00122386]
[1739252733637,0.12778406,98403.0,98402.0,0.00122386]
[1739252736548,0.28021806,98403.0,98402.0,0.00122386]
[1739252736754,0.27621806,98403.0,98402.0,0.00022386]
[1739252737144,0.32281806,98403.0,98402.0,0.00022386]
[1739252737526,0.32681806,98403.0,98402.0,0.00122386]
[1739252738608,0.32681806,98403.0,98402.0,0.00022386]
[1739252738609,0.2746406,98403.0,98402.0,0.00022386]
[1739252739071,0.2786406,98403.0,98402.0,0.00122386]
[1739252743707,0.1262066,98403.0,98402.0,0.00122386]
[1739252743905,0.0507066,98403.0,98402.0,0.00122386]
[1739252746951,0.0041066,98403.0,98402.0,0.00122386]
[1739252750000,0.01975976,98403.0,98402.0,0.00122386]
[1739252750421,0.0041066,98403.0,98402.0,0.00122386]
[1739252751355,0.0001066,98403.0,98402.0,0.00022386]
[1739252751495,0.0041066,98403.0,98402.0,0.00022386]
[1739252751903,0.0001066,98403.0,98402.0,0.00022386]
[1739252752333,0.0041066,98403.0,98402.0,0.00022386]
[1739252754596,0.0041066,98403.0,98402.0,0.08252386]
[1739252755798,0.0001066,98403.0,98402.0,0.08252386]
[1739252756126,0.0041066,98403.0,98402.0,0.08252386]
[1739252757447,0.0001066,98403.0,98402.0,0.08252386]
[1739252757799,0.0031066,98403.0,98402.0,0.08252386]
[1739252758872,0.0001066,98403.0,98402.0,0.08252386]
[1739252759223,0.0031066,98403.0,98402.0,0.08252386]
[1739252760628,0.0031066,98403.0,98402.0,0.00022386]
[1739252767952,0.0001066,98403.0,98402.0,0.00022386]
[1739252768382,0.0031066,98403.0,98402.0,0.00022386]
[1739252768777,0.01565956,98403.0,98402.0,0.00022386]
[1739252768988,0.01865956,98403.0,98402.0,0.00022386]
[1739252770020,0.0031066,98403.0,98402.0,0.00022386]
[1739252774679,0.0001066,98403.0,98402.0,0.00022386]
[1739252775684,0.0021066,98403.0,98402.0,0.00022386]
[1739252785425,0.0021066,98403.0,98402.0,0.01920039]
[1739252786944,0.0021066,98403.0,98402.0,0.00022386]
[1739252792198,0.1545406,98403.0,98402.0,0.00022386]
[1739252792974,0.22373256,98403.0,98402.0,0.00022386]
[1739252793974,0.22173256,98403.0,98402.0,0.00022386]
[1739252794270,0.22573256,98403.0,98402.0,0.00022386]
[1739252794477,0.32823621,98403.0,98402.0,0.00022386]
[1739252794683,0.36000522,98403.0,98402.0,0.00022386]
[1739252796257,0.44180522,98403.0,98402.0,0.00022386]
[1739252796460,0.41003621,98403.0,98402.0,0.00022386]
[1739252796785,0.44178258,98403.0,98402.0,0.00022386]
[1739252797352,0.4200771,98403.0,98402.0,0.00022386]
[1739252798774,0.4160771,98403.0,98402.0,0.00022386]
[1739252799187,0.4230771,98403.0,98402.0,0.00122386]
[1739252811366,0.4160771,98403.0,98402.0,0.00022386]
[1739252811607,0.4180771,98403.0,98402.0,0.00122386]
[1739252811786,0.4320771,98403.0,98402.0,0.00222386]
[1739252818903,0.3502771,98403.0,98402.0,0.00222386]
[1739252824368,0.38203057,98403.0,98402.0,0.00222386]
[1739252825091,0.3502771,98403.0,98402.0,0.00222386]
[1739252825497,0.31284593,98403.0,98402.0,0.00222386]
[1739252826233,0.28108514,98403.0,98402.0,0.00222386]
[1739252826409,0.31285554,98403.0,98402.0,0.00222386]
[1739252839653,0.21035189,98403.0,98402.0,0.00222386]
[1739252840257,0.17858149,98403.0,98402.0,0.00222386]
[1739252840410,0.21037133,98403.0,98402.0,0.00222386]
[1739252840613,0.17858149,98403.0,98402.0,0.00222386]
[1739252841022,0.21037011,98403.0,98402.0,0.00222386]
[1739252842523,0.17858149,98403.0,98402.0,0.00222386]
[1739252843544,0.21036832,98403.0,98402.0,0.00222386]
[1739252843975,0.17858149,98403.0,98402.0,0.00222386]
[1739252844469,0.2103675,98403.0,98402.0,0.00222386]
[1739252845820,0.37761498,98403.0,98402.0,0.00222386]
[1739252847984,0.36361498,98403.0,98402.0,0.00122386]
[1739252848417,0.37761498,98403.0,98402.0,0.00222386]
[1739252853828,0.31287115,98403.0,98402.0,0.00222386]
[1739252862223,0.2103675,98403.0,98402.0,0.00222386]
[1739252862448,0.17858149,98403.0,98402.0,0.00222386]
[1739252862639,0.21035687,98403.0,98402.0,0.00222386]
[1739252863696,0.17858149,98403.0,98402.0,0.00222386]
[1739252864109,0.21035659,98403.0,98402.0,0.00222386]
[1739252864506,0.17858149,98403.0,98402.0,0.00222386]
[1739252867043,0.21035534,98403.0,98402.0,0.00222386]
[1739252867794,0.23213825,98403.0,98402.0,0.00222386]
[1739252870164,0.2003644,98403.0,98402.0,0.00222386]
[1739252870632,0.2321386,98403.0,98402.0,0.00222386]
[1739252872855,0.21035569,98403.0,98402.0,0.00222386]
[1739252877659,0.31285934,98403.0,98402.0,0.00222386]
[1739252879401,0.31085934,98403.0,98402.0,0.00122386]
[1739252879541,0.31485934,98403.0,98402.0,0.00222386]
[1739252903514,0.21235569,98403.0,98402.0,0.00222386]
[1739252904895,0.27629833,98403.0,98402.0,0.00222386]
[1739252907029,0.21235569,98403.0,98402.0,0.00222386]
[1739252913849,0.05992169,98403.0,98402.0,0.07872386]
[1739252914018,0.18058149,98403.0,98402.0,0.07872386]
[1739252921015,0.1705406,98403.0,98402.0,0.07872386]
[1739252921428,0.0181066,98403.0,98402.0,0.07872386]
[1739252922109,0.1705406,98403.0,98402.0,0.07872386]
[1739252922783,0.0181066,98403.0,98402.0,0.07872386]
[1739252924079,0.1705406,98403.0,98402.0,0.07872386]
[1739252925573,0.1705406,98403.0,98402.0,0.00222386]
[1739252928185,0.1705406,98403.0,98402.0,0.00105297]
[1739252930395,0.1705406,98403.0,98402.0,0.00127683]
[1739252945777,0.27304425,98403.0,98402.0,0.00127683]
[1739252946817,0.30481147,98403.0,98402.0,0.00127683]
[1739252956571,0.152449,98393.0,98392.0,0.00022386]
[1739252956785,0.25495265,98393.0,98392.0,0.00022386]
[1739252957616,0.43672336,98393.0,98392.0,0.00022386]
[1739252957829,0.43972336,98393.0,98392.0,0.00022386]
[1739252958034,0.44672336,98393.0,98392.0,0.00122386]
[1739252958233,0.52841356,98393.0,98392.0,0.00122386]
[1739252958433,0.52541356,98393.0,98392.0,0.00122386]
[1739252959199,0.51841356,98393.0,98392.0,0.00022386]
[1739252959603,0.44272336,98393.0,98392.0,0.00122386]
[1739252959806,0.44572336,98393.0,98392.0,0.00122386]
[1739252960539,0.44572336,98393.0,98392.0,0.00104171]
[1739252961689,0.41395265,98393.0,98392.0,0.00104171]
[1739252961886,0.42418344,98393.0,98392.0,0.00104171]
[1739252963144,0.52668709,98393.0,98392.0,0.00104171]
[1739252963457,0.42418344,98393.0,98392.0,0.00104171]
[1739252966030,0.41518344,98393.0,98392.0,4.171e-05]
[1739252966402,0.42618344,98393.0,98392.0,4.171e-05]
[1739252966610,0.43218344,98393.0,98392.0,4.171e-05]
[1739252967932,0.28218344,98393.0,98392.0,4.171e-05]
[1739252968113,0.38009918,98393.0,98392.0,4.171e-05]
[1739252970027,0.28218344,98393.0,98392.0,4.171e-05]
[1739252977218,0.28229004,98393.0,98392.0,4.171e-05]
[1739252988199,0.31406459,98393.0,98392.0,4.171e-05]
[1739252996094,0.28229004,98393.0,98392.0,4.171e-05]
[1739252996319,0.31407997,98393.0,98392.0,4.171e-05]
[1739252997212,0.28229004,98393.0,98392.0,4.171e-05]
[1739253001223,0.37449644,98393.0,98392.0,4.171e-05]
[1739253001628,0.28229004,98393.0,98392.0,4.171e-05]
[1739253006327,0.17978639,98393.0,98392.0,4.171e-05]
[1739253007323,0.1695556,98393.0,98392.0,4.171e-05]
[1739253014332,0.27205925,98393.0,98392.0,4.171e-05]
[1739253017598,0.27205925,98393.0,98392.0,0.10004171]
[1739253017800,0.30382589,98393.0,98392.0,0.10004171]
[1739253019983,0.36317184,98393.0,98392.0,0.10004171]
[1739253025408,0.30382589,98393.0,98392.0,0.10004171]
[1739253025612,0.46382589,98393.0,98392.0,0.10004171]
[1739253026383,0.45282589,98393.0,98392.0,0.10004171]
[1739253026715,0.46682589,98393.0,98392.0,0.10004171]
[1739253027418,0.46082589,98393.0,98392.0,0.10004171]
[1739253027772,0.61676186,98393.0,98392.0,0.04301706]
[1739253029775,0.63976186,98393.0,98392.0,0.04301706]
[1739253030005,1.04796186,98393.0,98392.0,0.04301706]
[1739253031449,0.345451,98392.0,98391.0,0.01]
[1739253031602,0.31247,98380.0,98378.0,0.00035641]
[1739253031761,0.41497365,98380.0,98378.0,0.00035641]
[1739253032168,0.42497365,98380.0,98378.0,0.00035641]
[1739253032373,0.5274773,98380.0,98378.0,0.00035641]
[1739253032577,0.5314773,98380.0,98378.0,0.00035641]
[1739253032780,0.5809773,98380.0,98378.0,0.00035641]
[1739253033644,0.5939773,98380.0,98378.0,0.00035641]
[1739253034321,0.60418076,98380.0,98378.0,0.00035641]
[1739253034721,0.60018076,98380.0,98378.0,0.00035641]
[1739253034928,0.59318076,98380.0,98378.0,0.00035641]
[1739253035140,0.60718076,98380.0,98378.0,0.00035641]
[1739253035341,0.152504,98358.0,98357.0,0.00022365]
[1739253035683,0.25500765,98358.0,98357.0,0.00022365]
[1739253036093,0.27402371,98358.0,98357.0,0.00022365]
[1739253037532,0.28002371,98358.0,98357.0,0.00022365]
[1739253037737,0.28302371,98358.0,98357.0,0.00022365]
[1739253037942,0.37332508,98358.0,98357.0,0.00022365]
[1739253038367,0.37832508,98358.0,98357.0,0.00022365]
[1739253038772,0.53232508,98358.0,98357.0,0.00022365]
[1739253038925,0.54232508,98358.0,98357.0,0.00022365]
[1739253040063,0.53232508,98358.0,98357.0,0.00022365]
[1739253040425,0.54632508,98358.0,98357.0,0.00022365]
[1739253040650,0.55655433,98358.0,98357.0,0.00022365]
[1739253040993,0.45825296,98358.0,98357.0,0.00022365]
[1739253041184,0.46525296,98358.0,98357.0,0.00022365]
[1739253041570,0.152542,98333.0,98332.0,0.0822]
[1739253041774,0.25504565,98333.0,98332.0,0.0822]
[1739253042034,0.25504565,98333.0,98327.0,0.0822]
[1739253042035,0.15255,98328.0,98327.0,0.0822]
[1739253042793,0.15259931,98328.0,98327.0,0.0822]
[1739253043383,0.15459931,98328.0,98327.0,0.0822]
[1739253044417,0.15659931,98328.0,98327.0,0.0822]
[1739253045254,0.16690082,98328.0,98327.0,0.0822]
[1739253045553,0.16690082,98328.0,98327.0,0.08242386]
[1739253046501,0.16490082,98328.0,98327.0,0.08242386]
[1739253046978,0.16790082,98328.0,98327.0,0.08242386]
[1739253048409,0.16590082,98328.0,98327.0,0.08242386]
[1739253049037,0.01535082,98328.0,98327.0,0.08242386]
[1739253050184,0.01335082,98328.0,98327.0,0.08242386]
[1739253050602,0.00304931,98328.0,98327.0,0.09529625]
[1739253050801,0.00304931,98328.0,98327.0,0.29544825]
[1739253051101,4.931e-05,98328.0,98327.0,0.29544825]
[1739253051351,4.931e-05,98328.0,98327.0,0.3979519]
[1739253051552,0.00204931,98328.0,98327.0,0.3979519]
[1739253051687,0.00404931,98328.0,98327.0,0.3979519]
[1739253051884,4.931e-05,98328.0,98327.0,0.3979519]
[1739253052326,0.00104931,98328.0,98327.0,0.3979519]
[1739253052497,0.00104931,98328.0,98327.0,0.38507951]
[1739253052674,0.00104931,98328.0,98327.0,0.13002386]
[1739253052675,4.931e-05,98328.0,98327.0,0.13002386]
[1739253053159,0.00204931,98328.0,98327.0,0.13002386]
[1739253053992,0.00304931,98328.0,98327.0,0.13002386]
[1739253054392,0.00104931,98328.0,98327.0,0.13002386]
[1739253054609,0.00204931,98328.0,98327.0,0.13102386]
[1739253055031,0.00204931,98328.0,98327.0,0.28357586]
[1739253055221,4.931e-05,98328.0,98327.0,0.28257586]
[1739253055423,0.00104931,98328.0,98327.0,0.28357586]
[1739253055871,0.00104931,98328.0,98327.0,0.28257586]
[1739253056057,4.931e-05,98328.0,98327.0,0.28257586]
[1739253056263,0.00104931,98328.0,98327.0,0.28177586]
[1739253057567,0.00048204,98328.0,98327.0,0.28177586]
[1739253059438,0.152518,98349.0,98329.0,0.152547]
[1739253059552,0.152518,98349.0,98330.0,0.07791684]
[1739253059754,0.28472724,98352.0,98331.0,0.0769]
[1739253060012,0.03,98340.0,98331.0,0.0769]
[1739253060811,0.03,98340.0,98336.0,0.0769]
[1739253061019,0.03,98340.0,98339.0,0.0769]
[1739253061219,0.03,98340.0,98339.0,0.1222]
[1739253061629,0.031,98340.0,98339.0,0.1222]
[1739253062218,0.03,98340.0,98339.0,0.1222]
[1739253062730,0.031,98340.0,98339.0,0.1222]
[1739253064410,0.001,98340.0,98339.0,0.1222]
[1739253064838,0.002,98340.0,98339.0,0.1222]
[1739253069455,0.0021066,98340.0,98339.0,0.1222]
[1739253072045,0.0001066,98340.0,98339.0,0.0769]
[1739253072285,0.0001066,98340.0,98333.0,0.0769]
[1739253072438,0.0041066,98340.0,98333.0,0.0769]
[1739253073247,0.0021066,98340.0,98333.0,0.0769]
[1739253073514,0.0021066,98340.0,98332.0,0.3216]
[1739253073677,0.152542,98333.0,98332.0,0.3216]
[1739253074149,0.152544,98332.0,98329.0,6.293e-05]
[1739253074431,0.152547,98330.0,98329.0,6.293e-05]
[1739253075431,0.302547,98330.0,98329.0,6.293e-05]
[1739253075792,0.305547,98330.0,98329.0,6.293e-05]
[1739253076209,0.310547,98330.0,98329.0,6.293e-05]
[1739253076650,0.307547,98330.0,98329.0,6.293e-05]
[1739253077605,0.302547,98330.0,98329.0,6.293e-05]
[1739253077820,0.307547,98330.0,98329.0,6.293e-05]
[1739253078015,0.310547,98330.0,98329.0,6.293e-05]
[1739253078731,0.34019016,98330.0,98329.0,6.293e-05]
[1739253079903,0.310547,98330.0,98329.0,6.293e-05]
[1739253080112,0.44615826,98330.0,98329.0,6.293e-05]
[1739253080728,0.45615826,98330.0,98329.0,6.293e-05]
[1739253080928,0.50425826,98330.0,98329.0,6.293e-05]
[1739253081115,0.49925826,98330.0,98329.0,6.293e-05]
[1739253081318,0.59876191,98330.0,98329.0,6.293e-05]
[1739253081469,0.61276191,98330.0,98329.0,6.293e-05]
[1739253081695,0.61876191,98330.0,98329.0,6.293e-05]
[1739253082077,0.60476191,98330.0,98329.0,6.293e-05]
[1739253082478,0.61876191,98330.0,98329.0,6.293e-05]
[1739253082690,0.69466191,98330.0,98329.0,6.293e-05]
[1739253082885,0.68866191,98330.0,98329.0,6.293e-05]
[1739253084352,0.69566191,98330.0,98329.0,6.293e-05]
[1739253086391,0.335549,98329.0,98328.0,1e-08]
[1739253086596,0.46955,98328.0,98327.0,8.7e-07]
[1739253086799,0.57205365,98328.0,98327.0,0.00013353]
[1739253086957,0.60367177,98328.0,98327.0,0.00013353]
[1739253087962,0.61067177,98328.0,98327.0,5.3e-07]
[1739253088208,0.70617542,98328.0,98327.0,5.3e-07]
[1739253088400,0.72817542,98328.0,98327.0,5.3e-07]
[1739253088771,0.70617542,98328.0,98327.0,5.3e-07]
[1739253089015,0.436575,98312.0,98311.0,0.00022386]
[1739253089236,0.62586523,98312.0,98311.0,0.00066634]
[1739253090133,0.56207865,98312.0,98311.0,0.00066634]
[1739253091386,0.56907865,98312.0,98311.0,0.00066634]
[1739253092120,0.44307865,98312.0,98311.0,0.00066634]
[1739253092326,0.45007865,98312.0,98311.0,0.00066634]
[1739253092669,0.46036928,98312.0,98311.0,0.00066634]
[1739253093070,0.44536928,98312.0,98311.0,0.00066634]
[1739253093497,0.54787293,98312.0,98311.0,0.00066634]
[1739253093840,0.44536928,98312.0,98311.0,0.00066634]
[1739253094559,0.46736928,98312.0,98311.0,0.00066634]
[1739253094694,0.46036928,98312.0,98311.0,0.00066634]
[1739253095118,0.46736928,98312.0,98311.0,0.00066634]
[1739253095313,0.4659592,98312.0,98311.0,0.00066634]
[1739253095520,0.4809592,98312.0,98311.0,0.00066634]
[1739253095729,0.4879592,98312.0,98311.0,0.00066634]
[1739253095929,0.4659592,98312.0,98311.0,0.00066634]
[1739253096132,0.4729592,98312.0,98311.0,0.00066634]
[1739253096832,0.4879592,98312.0,98311.0,0.00066634]
[1739253097654,0.4739592,98312.0,98311.0,0.00066634]
[1739253098014,0.4809592,98312.0,98311.0,0.00066634]
[1739253098684,0.4739592,98312.0,98311.0,0.00066634]
[1739253099109,0.4809592,98312.0,98311.0,0.00066634]
[1739253108424,0.46036928,98312.0,98311.0,0.00066634]
[1739253108626,0.324575,98312.0,98311.0,0.00066634]
[1739253108868,0.334535,98312.0,98311.0,0.00066634]
[1739253109222,0.184535,98312.0,98311.0,0.00066634]
[1739253109435,0.01696,98312.0,98311.0,0.12146634]
[1739253110141,0.02396,98312.0,98311.0,0.12146634]
[1739253110342,0.02396,98312.0,98311.0,0.2873535]
[1739253110546,0.02396,98312.0,98311.0,0.38884008]
[1739253111380,0.00996,98312.0,98311.0,0.38884008]
[1739253111577,0.01496,98312.0,98311.0,0.37654699]
[1739253111779,0.02196,98312.0,98311.0,0.37654699]
[1739253112233,0.00996,98312.0,98311.0,0.37654699]
[1739253112434,0.01096,98312.0,98311.0,0.37854699]
[1739253112849,0.0001066,98327.0,98326.0,0.273353]